fUSD/lending_fUSD_20250506
["ID","MTS","AMOUNT","RATE_DAILY","PERIOD"]
[360062500,1746532243832,-505.67617049,0.00019898,2]
[360062501,1746532243843,-450.0,0.00019898,2]
[360062502,1746532243852,-450.0,0.00019898,2]
[360062503,1746532243862,-450.0,0.00019898,2]
[360062504,1746532243871,-150.0,0.00019898,2]
[360062505,1746532243881,-450.0,0.00019898,2]
[360062506,1746532243893,-450.0,0.00019898,2]
[360062507,1746532243903,-450.0,0.00019898,2]
[360062508,1746532243912,-450.0,0.00019898,2]
[360062509,1746532243922,-450.0,0.00019898,2]
[360062510,1746532243931,-450.0,0.00019898,2]
[360062511,1746532243941,-450.0,0.00019898,2]
[360062512,1746532243950,-450.0,0.00019898,2]
[360062513,1746532243960,-450.0,0.00019898,2]
[360062514,1746532243969,-450.0,0.00019898,2]
[360062515,1746532243978,-450.0,0.00019898,2]
[360062516,1746532243988,-500.0,0.00019898,2]
[360062517,1746532243997,-450.0,0.00019898,2]
[360062518,1746532244006,-450.0,0.00019898,2]
[360062519,1746532244016,-450.0,0.00019898,2]
[360062520,1746532244025,-450.0,0.00019898,2]
[360062521,1746532244034,-450.0,0.00019898,2]
[360062522,1746532244044,-450.0,0.00019898,2]
[360062523,1746532244053,-450.0,0.00019898,2]
[360062524,1746532244063,-501.96085855,0.00019898,2]
[360062525,1746532244072,-450.0,0.00019898,2]
[360062526,1746532244081,-450.0,0.00019898,2]
[360062527,1746532244090,-450.0,0.00019898,2]
[360062528,1746532244099,-450.0,0.00019898,2]
[360062529,1746532244108,-450.0,0.00019898,2]
[360062530,1746532244118,-450.0,0.00019898,2]
[360062531,1746532244127,-450.0,0.00019898,2]
[360062532,1746532244136,-289.32080697,0.00019898,2]
[360062533,1746532244146,-474.90184557,0.00019898,2]
[360062534,1746532244155,-450.0,0.00019898,2]
[360062535,1746532244165,-450.0,0.00019898,2]
[360062536,1746532244174,-450.0,0.00019898,2]
[360062537,1746532244184,-450.0,0.00019898,2]
[360062538,1746532244193,-450.0,0.00019898,2]
[360062539,1746532244203,-286.72580984,0.00019898,2]
[360062540,1746532244212,-450.0,0.00019898,2]
[360062541,1746532244221,-450.0,0.00019898,2]
[360062542,1746532244231,-74.04489269,0.00019898,2]
[360062543,1746532244540,-375.95510731,0.00019898,2]
[360062544,1746532244550,-450.0,0.00019898,2]
[360062545,1746532244559,-450.0,0.00019898,2]
[360062546,1746532244568,-450.0,0.00019898,2]
[360062547,1746532244577,-450.0,0.00019898,2]
[360062548,1746532244587,-450.0,0.00019898,2]
[360062549,1746532244596,-450.0,0.00019898,2]
[360062550,1746532244606,-450.0,0.00019898,2]
[360062551,1746532244615,-450.0,0.00019898,2]
[360062552,1746532244625,-450.0,0.00019898,2]
[360062553,1746532244634,-450.0,0.00019898,2]
[360062554,1746532244643,-450.0,0.00019898,2]
[360062555,1746532244653,-450.0,0.00019898,2]
[360062556,1746532244663,-450.0,0.00019898,2]
[360062557,1746532244672,-450.0,0.00019898,2]
[360062558,1746532244681,-479.06,0.00019898,2]
[360062559,1746532244691,-450.0,0.00019898,2]
[360062560,1746532244701,-450.0,0.00019898,2]
[360062561,1746532244710,-450.0,0.00019898,2]
[360062562,1746532244719,-450.0,0.00019898,2]
[360062563,1746532244729,-450.0,0.00019898,2]
[360062564,1746532244738,-450.0,0.00019898,2]
[360062565,1746532244748,-450.0,0.00019898,2]
[360062566,1746532244757,-450.0,0.00019898,2]
[360062567,1746532244769,-502.943724,0.00019898,2]
[360062568,1746532244779,-450.0,0.00019898,2]
[360062569,1746532244788,-500.0,0.00019898,2]
[360062570,1746532244797,-450.0,0.00019898,2]
[360062571,1746532244806,-450.0,0.00019898,2]
[360062572,1746532244817,-450.0,0.00019898,2]
[360062573,1746532244827,-450.0,0.00019898,2]
[360062574,1746532244836,-476.6,0.00019898,2]
[360062575,1746532244845,-450.0,0.00019898,2]
[360062576,1746532244855,-450.0,0.00019898,2]
[360062577,1746532244865,-450.0,0.00019898,2]
[360062578,1746532244874,-450.0,0.00019898,2]
[360062579,1746532244884,-450.0,0.00019898,2]
[360062580,1746532244893,-450.0,0.00019898,2]
[360062581,1746532244903,-450.0,0.00019898,2]
[360062582,1746532244912,-450.0,0.00019898,2]
[360062583,1746532244922,-450.0,0.00019898,2]
[360062584,1746532244931,-450.0,0.00019898,2]
[360062585,1746532244941,-9.60957404,0.00019898,2]
[360062586,1746532244984,-324.12514541,0.00019898,2]
[360062587,1746532244993,-308.42985459,0.00019898,2]
[360062588,1746532245010,-141.57014541,0.00019898,2]
[360062589,1746532245021,-450.0,0.00019898,2]
[360062590,1746532245031,-450.0,0.00019898,2]
[360062591,1746532245040,-450.0,0.00019898,2]
[360062592,1746532245049,-450.0,0.00019898,2]
[360062593,1746532245060,-450.0,0.00019898,2]
[360062594,1746532245069,-450.0,0.00019898,2]
[360062595,1746532245079,-579.01,0.00019898,2]
[360062596,1746532245088,-390.78,0.00019898,2]
[360062597,1746532245097,-470.0,0.00019898,2]
[360062598,1746532245106,-450.0,0.00019898,2]
[360062599,1746532245116,-450.0,0.00019898,2]
[360062601,1746532245126,-450.0,0.00019898,2]
[360062602,1746532245135,-450.0,0.00019898,2]
[360062603,1746532245145,-450.0,0.00019898,2]
[360062604,1746532245155,-450.0,0.00019898,2]
[360062605,1746532245164,-450.0,0.00019898,2]
[360062606,1746532245174,-450.0,0.00019898,2]
[360062607,1746532245182,-450.0,0.00019898,2]
[360062608,1746532245191,-450.0,0.00019898,2]
[360062609,1746532245200,-450.0,0.00019898,2]
[360062610,1746532245209,-450.0,0.00019898,2]
[360062611,1746532245218,-450.0,0.00019898,2]
[360062612,1746532245227,-450.0,0.00019898,2]
[360062613,1746532245236,-450.0,0.00019898,2]
[360062614,1746532245245,-450.0,0.00019898,2]
[360062615,1746532245254,-450.0,0.00019898,2]
[360062616,1746532245263,-450.0,0.00019898,2]
[360062617,1746532245271,-450.0,0.00019898,2]
[360062618,1746532245280,-315.69530754,0.00019898,2]
[360062620,1746532245289,-1513.07518128,0.00019898,2]
[360062622,1746532245301,-6675.71345882,0.00019898,2]
[360062624,1746532245313,-8.4613599,0.00019898,2]
[360062626,1746532245322,-450.0,0.00019898,2]
[360062628,1746532245330,-443.01460634,0.00019898,2]
[360062630,1746532245353,-6.98539366,0.00019898,2]
[360062631,1746532245363,-450.0,0.00019898,2]
[360062632,1746532245372,-484.59329468,0.00019899,2]
[360062636,1746532245601,-58.19067903,0.00019898,2]
[360062637,1746532245617,-391.80932097,0.00019898,2]
[360062638,1746532245626,-1753.19067903,0.00019899,2]
[360062639,1746532245645,-1839.26733809,0.00019899,2]
[360062640,1746532245656,-5179.13,0.00019899,2]
[360062641,1746532246042,-14.78466259,0.00019899,2]
[360062642,1746532246053,-189433.80132561,0.00019899,2]
[360062643,1746532246063,-1000.0,0.00019899,2]
[360062644,1746532246072,-450.0,0.00019899,2]
[360062645,1746532246081,-450.0,0.00019899,2]
[360062646,1746532246091,-450.37,0.00019899,2]
[360062647,1746532246100,-450.0,0.00019899,2]
[360062648,1746532246110,-450.0,0.00019899,2]
[360062649,1746532246119,-450.0,0.00019899,2]
[360062650,1746532246129,-450.0,0.00019899,2]
[360062651,1746532246137,-450.0,0.00019899,2]
[360062652,1746532246147,-450.0,0.00019899,2]
[360062653,1746532246158,-450.0,0.00019899,2]
[360062654,1746532246167,-450.0,0.00019899,2]
[360062655,1746532246176,-573.84,0.00019899,2]
[360062656,1746532246185,-450.0,0.00019899,2]
[360062657,1746532246194,-450.0,0.00019899,2]
[360062658,1746532246203,-450.0,0.00019899,2]
[360062659,1746532246213,-450.0,0.00019899,2]
[360062660,1746532246222,-450.0,0.00019899,2]
[360062661,1746532246231,-450.0,0.00019899,2]
[360062662,1746532246240,-305.38671307,0.00019899,2]
[360062663,1746532246249,-450.0,0.00019899,2]
[360062664,1746532246258,-450.0,0.00019899,2]
[360062665,1746532246267,-450.0,0.00019899,2]
[360062666,1746532246277,-450.0,0.00019899,2]
[360062667,1746532246286,-450.0,0.00019899,2]
[360062668,1746532246295,-284.77435794,0.00019899,2]
[360062669,1746532246304,-450.0,0.00019899,2]
[360062670,1746532246313,-450.0,0.00019899,2]
[360062671,1746532246322,-450.0,0.00019899,2]
[360062672,1746532246331,-450.0,0.00019899,2]
[360062673,1746532246340,-450.0,0.00019899,2]
[360062674,1746532246350,-450.0,0.00019899,2]
[360062675,1746532246359,-499.51788771,0.00019899,2]
[360062676,1746532246367,-579.64,0.00019899,2]
[360062677,1746532246377,-450.0,0.00019899,2]
[360062678,1746532246386,-450.0,0.00019899,2]
[360062679,1746532246395,-450.0,0.00019899,2]
[360062680,1746532246406,-450.0,0.00019899,2]
[360062681,1746532246415,-450.0,0.00019899,2]
[360062682,1746532246424,-450.0,0.00019899,2]
[360062683,1746532246433,-324.19631248,0.00019899,2]
[360062684,1746532246443,-450.0,0.00019899,2]
[360062685,1746532246452,-450.0,0.00019899,2]
[360062686,1746532246462,-378.85,0.00019899,2]
[360062687,1746532246471,-450.0,0.00019899,2]
[360062688,1746532246480,-450.0,0.00019899,2]
[360062689,1746532246489,-450.0,0.00019899,2]
[360062690,1746532246498,-523.64304004,0.00019899,2]
[360062691,1746532246508,-450.0,0.00019899,2]
[360062692,1746532246517,-450.0,0.00019899,2]
[360062693,1746532246526,-450.0,0.00019899,2]
[360062694,1746532246535,-450.0,0.00019899,2]
[360062695,1746532246543,-450.0,0.00019899,2]
[360062696,1746532246552,-450.0,0.00019899,2]
[360062697,1746532246561,-450.0,0.00019899,2]
[360062698,1746532246570,-450.0,0.00019899,2]
[360062699,1746532246579,-450.0,0.00019899,2]
[360062700,1746532246588,-479.06,0.00019899,2]
[360062701,1746532246597,-500.0,0.00019899,2]
[360062702,1746532246607,-450.0,0.00019899,2]
[360062703,1746532246616,-450.0,0.00019899,2]
[360062704,1746532246625,-450.0,0.00019899,2]
[360062705,1746532246633,-450.0,0.00019899,2]
[360062706,1746532246642,-450.0,0.00019899,2]
[360062707,1746532246652,-450.0,0.00019899,2]
[360062708,1746532246661,-450.0,0.00019899,2]
[360062709,1746532246670,-450.0,0.00019899,2]
[360062710,1746532246679,-582.32,0.00019899,2]
[360062711,1746532246689,-450.0,0.00019899,2]
[360062712,1746532246698,-450.0,0.00019899,2]
[360062713,1746532246707,-450.0,0.00019899,2]
[360062714,1746532246716,-450.0,0.00019899,2]
[360062715,1746532246726,-450.0,0.00019899,2]
[360062716,1746532246735,-450.0,0.00019899,2]
[360062717,1746532246744,-450.0,0.00019899,2]
[360062718,1746532246753,-450.0,0.00019899,2]
[360062719,1746532246763,-450.0,0.00019899,2]
[360062720,1746532246777,-450.0,0.00019899,2]
[360062721,1746532246786,-450.0,0.00019899,2]
[360062722,1746532246795,-450.0,0.00019899,2]
[360062723,1746532246805,-450.0,0.00019899,2]
[360062724,1746532246814,-450.0,0.00019899,2]
[360062725,1746532246823,-8197.25,0.00019899,2]
[360062726,1746532246832,-450.0,0.00019899,2]
[360062727,1746532246841,-450.0,0.00019899,2]
[360062728,1746532246851,-450.0,0.00019899,2]
[360062729,1746532246860,-450.0,0.00019899,2]
[360062730,1746532246868,-166.51896108,0.000199,2]
[360062731,1746532246878,-12500.0,0.000199,2]
[360062732,1746532246887,-171.33993633,0.000199,2]
[360062733,1746532246896,-336.7367794,0.000199,2]
[360062734,1746532246906,-863.97595693,0.000199,2]
[360062735,1746532246915,-1910.0,0.000199,2]
[360062736,1746532246924,-5800.0,0.000199,2]
[360062737,1746532246933,-5306.28,0.000199,2]
[360062738,1746532246942,-178.31621896,0.000199,2]
[360062739,1746532246951,-123418.40587384,0.000199,2]
[360062740,1746532246960,-440.32113161,0.000199,2]
[360062741,1746532246969,-1458.10604462,0.000199,2]
[360062742,1746532246978,-4186.35994324,0.000199,2]
[360062743,1746532246987,-376.19560847,0.000199,2]
[360062744,1746532246996,-150.0,0.00019918,7]
[360062745,1746532247005,-500.0,0.00019973,2]
[360062746,1746532247014,-500.0,0.00019973,2]
[360062747,1746532247024,-218.48434508,0.00019973,2]
[360062748,1746532247033,-500.0,0.00019973,2]
[360062749,1746532247042,-509.37765771,0.00019973,2]
[360062750,1746532247051,-331.13899489,0.00019973,2]
[360062751,1746532247059,-501.06170248,0.00019973,2]
[360062752,1746532247069,-501.26193126,0.00019973,2]
[360062753,1746532247078,-500.0,0.00019973,2]
[360062754,1746532247087,-450.0,0.00019974,2]
[360062755,1746532247096,-450.0,0.00019974,2]
[360062756,1746532247105,-450.0,0.00019974,2]
[360062757,1746532247115,-450.0,0.00019974,2]
[360062758,1746532247125,-450.0,0.00019974,2]
[360062759,1746532247135,-450.0,0.00019974,2]
[360062760,1746532247145,-450.0,0.00019974,2]
[360062761,1746532247155,-450.0,0.00019974,2]
[360062762,1746532247165,-450.0,0.00019974,2]
[360062763,1746532247174,-450.0,0.00019974,2]
[360062764,1746532247184,-450.0,0.00019974,2]
[360062765,1746532247193,-450.0,0.00019974,2]
[360062766,1746532247203,-448.60578175,0.00019974,2]
[360062767,1746532247212,-409.80050933,0.00019974,2]
[360062768,1746532247222,-450.0,0.00019974,2]
[360062769,1746532247231,-450.0,0.00019974,2]
[360062770,1746532247240,-450.0,0.00019974,2]
[360062771,1746532247249,-320.83079725,0.00019974,2]
[360062772,1746532247259,-450.0,0.00019974,2]
[360062773,1746532247268,-450.0,0.00019974,2]
[360062774,1746532247277,-484.86,0.00019974,2]
[360062775,1746532247407,-450.0,0.00019974,2]
[360062776,1746532247417,-930.145,0.00019975,2]
[360062777,1746532247427,-1434.157,0.00019975,2]
[360062778,1746532247436,-818.0,0.00019975,2]
[360062779,1746532247446,-1452.0,0.00019975,2]
[360062780,1746532247455,-551.0,0.00019975,2]
[360062781,1746532247464,-1243.0,0.00019975,2]
[360062782,1746532247473,-664.05,0.00019975,2]
[360062783,1746532247482,-1054.355,0.00019975,2]
[360062784,1746532247491,-244.59,0.00019975,2]
[360062785,1746532247500,-275.675,0.00019975,2]
[360062786,1746532247510,-494.122,0.00019975,2]
[360062787,1746532247519,-6759.0,0.00019975,2]
[360062788,1746532247528,-4015.0,0.00019975,2]
[360062789,1746532247537,-532.883,0.00019975,2]
[360062790,1746532247546,-400.27173267,0.00019976,2]
[360062791,1746532247555,-450.0,0.00019984,2]
[360062792,1746532247564,-450.0,0.00019984,2]
[360062793,1746532247574,-450.0,0.00019984,2]
[360062794,1746532247584,-450.0,0.00019984,2]
[360062795,1746532247593,-450.0,0.00019984,2]
[360062796,1746532247602,-556.56,0.00019984,2]
[360062797,1746532247612,-450.0,0.00019984,2]
[360062798,1746532247621,-450.0,0.00019984,2]
[360062799,1746532247630,-450.0,0.00019984,2]
[360062800,1746532247639,-172.87115028,0.00019984,2]
[360062801,1746532247648,-465.57847005,0.00019984,2]
[360062802,1746532247658,-479.06,0.00019984,2]
[360062803,1746532247668,-450.0,0.00019984,2]
[360062804,1746532247677,-450.0,0.00019984,2]
[360062805,1746532247686,-450.0,0.00019984,2]
[360062806,1746532247695,-450.0,0.00019984,2]
[360062807,1746532247705,-450.0,0.00019984,2]
[360062808,1746532247714,-569.26,0.00019984,2]
[360062809,1746532247723,-450.0,0.00019984,2]
[360062810,1746532247732,-450.0,0.00019984,2]
[360062811,1746532247741,-594.95,0.00019984,2]
[360062812,1746532247750,-450.0,0.00019984,2]
[360062813,1746532247758,-450.0,0.00019984,2]
[360062814,1746532247769,-450.0,0.00019984,2]
[360062815,1746532247778,-450.0,0.00019984,2]
[360062816,1746532247786,-450.0,0.00019985,2]
[360062817,1746532247795,-450.0,0.00019985,2]
[360062818,1746532247803,-450.0,0.00019985,2]
[360062819,1746532247812,-450.0,0.00019985,2]
[360062820,1746532247821,-450.0,0.00019985,2]
[360062821,1746532247830,-450.0,0.00019985,2]
[360062822,1746532247840,-450.0,0.00019985,2]
[360062823,1746532247851,-450.0,0.00019985,2]
[360062824,1746532247860,-450.0,0.00019985,2]
[360062825,1746532247869,-450.0,0.00019985,2]
[360062826,1746532247879,-450.0,0.00019985,2]
[360062827,1746532247889,-450.0,0.00019985,2]
[360062828,1746532247898,-450.0,0.00019985,2]
[360062829,1746532247913,-13820.8983038,0.00019985,2]
[360062830,1746532247922,-330.55900909,0.00019985,2]
[360062831,1746532247931,-110064.0418333,0.00019985,2]
[360062832,1746532247940,-3321.6735497,0.00019985,2]
[360062833,1746532247950,-450.0,0.00019985,2]
[360062834,1746532247959,-8625.4113824,0.00019985,2]
[360062835,1746532247968,-450.0,0.00019985,2]
[360062836,1746532247978,-450.0,0.00019985,2]
[360062837,1746532247987,-450.0,0.00019985,2]
[360062838,1746532247996,-513.53619116,0.00019985,2]
[360062839,1746532248005,-450.0,0.00019985,2]
[360062840,1746532248015,-264.18,0.00019985,2]
[360062841,1746532248024,-1361.9881155,0.00019985,2]
[360062842,1746532248034,-450.0,0.00019985,2]
[360062843,1746532248043,-450.0,0.00019985,2]
[360062844,1746532248053,-450.0,0.00019985,2]
[360062845,1746532248063,-176.28,0.00019985,2]
[360062846,1746532248073,-479.06,0.00019985,2]
[360062847,1746532248083,-479.06,0.00019985,2]
[360062848,1746532248092,-450.0,0.00019985,2]
[360062849,1746532248101,-350.74193993,0.00019985,2]
[360062850,1746532248127,-140.52806007,0.00019985,2]
[360062851,1746532248136,-450.0,0.00019985,2]
[360062852,1746532248146,-260.21,0.00019985,2]
[360062853,1746532248158,-450.0,0.00019985,2]
[360062854,1746532248168,-450.0,0.00019985,2]
[360062855,1746532248177,-319.26968033,0.00019985,2]
[360062856,1746532248186,-204.96,0.00019985,2]
[360062857,1746532248195,-450.0,0.00019985,2]
[360062858,1746532248207,-450.0,0.00019985,2]
[360062859,1746532248217,-308.12009927,0.00019985,2]
[360062860,1746532248227,-333.62,0.00019985,2]
[360062861,1746532248236,-971.84216033,0.00019985,2]
[360062862,1746532248256,-7225.40783967,0.00019985,2]
[360062863,1746532248265,-2474.1797414,0.00019985,2]
[360062864,1746532248278,-5723.0702586,0.00019985,2]
[360062865,1746532248287,-8197.25,0.00019985,2]
[360062866,1746532248296,-520.22,0.00019985,2]
[360062867,1746532248306,-1056.0,0.00019986,2]
[360062868,1746532248316,-775.03303164,0.00019986,2]
[360062869,1746532248325,-3272.2530187,0.00019986,2]
[360062870,1746532248423,-365.9201487,0.00019897,2]
[360062871,1746532248435,-95.0798513,0.00019897,2]
[360062872,1746532248444,-10473.3924161,0.00019986,2]
[360062873,1746532248454,-13670.3925657,0.00019986,2]
[360062874,1746532248463,-13595.1396967,0.00019986,2]
[360062875,1746532248472,-13519.8868276,0.00019986,2]
[360062876,1746532248481,-13444.6339586,0.00019986,2]
[360062877,1746532248490,-42255.91287627,0.00019986,2]
[360062878,1746532248503,-941.12,0.00019986,2]
[360062879,1746532248519,-36649.22211831,0.00019986,2]
[360062880,1746532249326,-1207.225,0.00019986,2]
[360062881,1746532249337,-1036.43344057,0.00019986,2]
[360062882,1746532249436,-445.21977499,0.00019986,2]
[360062883,1746532262217,397.0,0.0003,30]
[360062884,1746532274569,488.51,0.0003,30]
[360062885,1746532281166,296.85,0.00018993,2]
[360062886,1746532297875,186.81,0.00018969,2]
[360062887,1746532298107,186.81,0.00019001,2]
[360062888,1746532298342,186.81,0.00019032,2]
[360062889,1746532298534,186.81,0.00019064,2]
[360062891,1746532448030,585.94,0.00018942,2]
[360062892,1746532482225,1727.8,0.00018933,2]
[360062894,1746532766578,500.0,0.00018904,2]
[360062895,1746532766920,500.0,0.00018904,2]
[360062896,1746532767266,500.0,0.00018904,2]
[360062897,1746532767580,500.0,0.00018904,2]
[360062898,1746532767892,500.0,0.00018904,2]
[360062899,1746532845268,179.17801029,0.00019,2]
[360062902,1746532929763,6447.87,0.00030137,120]
[360062903,1746532939353,250.0,0.00018864,2]
[360062904,1746533025761,820.43,0.00016941,2]
[360062905,1746533025982,820.43,0.00019205,2]
[360062906,1746533090710,157.94,0.0001886,2]
[360062907,1746533144895,158.31,0.00018859,2]
[360062908,1746533205876,-200.0,0.00019686,2]
[360062909,1746533205903,-151.0,0.00019785,2]
[360062910,1746533205931,-151.0,0.00019785,2]
[360062911,1746533205956,-155.0,0.00019785,2]
[360062912,1746533205981,-207.4,0.00019785,2]
[360062913,1746533206007,-668.65185757,0.00019785,2]
[360062914,1746533206033,-200.0,0.00019786,2]
[360062915,1746533206058,-1200.0,0.00019786,2]
[360062916,1746533206082,-300.0,0.00019786,2]
[360062917,1746533206107,-181.0,0.00019786,2]
[360062918,1746533206133,-250.0,0.00019786,2]
[360062919,1746533206158,-200.0,0.00019787,2]
[360062920,1746533206182,-2740.06159955,0.00019787,2]
[360062921,1746533206207,-1000.0,0.00019795,2]
[360062922,1746533206233,-151.0,0.00019796,2]
[360062923,1746533206260,-582.42522966,0.00019796,2]
[360062924,1746533206286,-583.0,0.00019796,2]
[360062925,1746533206315,-503.2801,0.00019797,2]
[360062926,1746533206342,-16063.18121322,0.00019797,2]
[360062927,1746533243880,206.06,0.00019435,2]
[360062928,1746533254260,171.97,0.00027397,30]
[360062929,1746533312448,23900.0,0.00018862,2]
[360062930,1746533331321,1000.0,0.00018834,2]
[360062931,1746533406559,500.0,0.00018904,2]
[360062932,1746533407182,500.0,0.00018904,2]
[360062933,1746533407810,200.0,0.00018904,2]
[360062934,1746533407834,300.0,0.00018904,2]
[360062935,1746533408485,500.0,0.00018904,2]
[360062936,1746533408826,500.0,0.00018904,2]
[360062944,1746533431625,-347.0526767,0.00019698,2]
[360062945,1746533431731,-1488.36044007,0.00019698,2]
[360062946,1746533431741,-1342.4186,0.00019698,2]
[360062947,1746533431750,-593.16391772,0.00019699,2]
[360062948,1746533431759,-200.0,0.000197,2]
[360062949,1746533431768,-809.82495276,0.0001972,2]
[360062950,1746533431779,-1025.58816396,0.0001972,2]
[360062951,1746533431788,-200.0,0.00019742,2]
[360062952,1746533431798,-250.0,0.00019742,2]
[360062953,1746533431807,-1835.41311672,0.00019743,2]
[360062954,1746533431816,-1200.0,0.00019764,2]
[360062955,1746533431824,-300.0,0.00019764,2]
[360062956,1746533431834,-1835.41311672,0.00019765,2]
[360062957,1746533431842,-191.88434438,0.00019773,2]
[360062958,1746533431852,-500.0,0.00019773,2]
[360062959,1746533431861,-200.0,0.00019775,2]
[360062960,1746533431870,-155.0,0.00019785,2]
[360062961,1746533431879,-151.0,0.00019785,2]
[360062962,1746533431889,-207.4,0.00019785,2]
[360062963,1746533431899,-668.65185757,0.00019785,2]
[360062964,1746533431908,-1835.41311672,0.00019788,2]
[360062965,1746533431918,-9615.53078398,0.00019797,2]
[360062966,1746533431941,-7992.15694835,0.00019797,2]
[360062967,1746533431996,-2398.96335,0.00019797,2]
[360063096,1746533437575,-5348.1779212,0.00019797,2]
[360063097,1746533437733,-14902.50181,0.00019797,2]
[360063098,1746533437742,-448.5345,0.00019797,2]
[360063099,1746533437752,-523.7977,0.00019797,2]
[360063100,1746533437761,-591.19,0.00019797,2]
[360063101,1746533437770,-500.0,0.00019797,2]
[360063102,1746533437779,-353.69708237,0.00019797,2]
[360063103,1746533437788,-450.0,0.00019797,2]
[360063104,1746533437797,-196.90439369,0.00019797,2]
[360063105,1746533437806,-450.0,0.00019797,2]
[360063106,1746533437816,-450.0,0.00019797,2]
[360063107,1746533437825,-116.80132363,0.00019797,2]
[360063108,1746533438150,-413.69957066,0.00019797,2]
[360063109,1746533438161,-450.0,0.00019797,2]
[360063110,1746533438170,-450.0,0.00019797,2]
[360063111,1746533438179,-462.82,0.00019797,2]
[360063112,1746533438190,-450.0,0.00019797,2]
[360063113,1746533438199,-450.0,0.00019797,2]
[360063114,1746533438209,-450.0,0.00019797,2]
[360063115,1746533438218,-617.03,0.00019797,2]
[360063116,1746533438228,-450.0,0.00019797,2]
[360063117,1746533438237,-450.0,0.00019797,2]
[360063118,1746533438247,-450.0,0.00019797,2]
[360063119,1746533438256,-450.0,0.00019797,2]
[360063121,1746533438266,-450.0,0.00019797,2]
[360063123,1746533438276,-450.0,0.00019797,2]
[360063124,1746533438285,-450.0,0.00019797,2]
[360063125,1746533438295,-450.0,0.00019797,2]
[360063126,1746533438305,-450.0,0.00019797,2]
[360063128,1746533438315,-450.0,0.00019797,2]
[360063130,1746533438324,-450.0,0.00019797,2]
[360063132,1746533438333,-450.0,0.00019797,2]
[360063134,1746533438343,-450.0,0.00019797,2]
[360063136,1746533438352,-450.0,0.00019797,2]
[360063138,1746533438362,-450.0,0.00019797,2]
[360063140,1746533438371,-450.0,0.00019797,2]
[360063142,1746533438383,-450.0,0.00019797,2]
[360063144,1746533438393,-450.0,0.00019797,2]
[360063145,1746533438402,-450.0,0.00019797,2]
[360063147,1746533438412,-450.0,0.00019797,2]
[360063150,1746533438423,-205.67699358,0.00019797,2]
[360063152,1746533438432,-500.0,0.00019797,2]
[360063155,1746533438441,-500.0,0.00019797,2]
[360063157,1746533438451,-500.0,0.00019797,2]
[360063159,1746533438461,-500.0,0.00019797,2]
[360063161,1746533438471,-500.0,0.00019797,2]
[360063164,1746533438480,-500.0,0.00019797,2]
[360063167,1746533438489,-500.0,0.00019797,2]
[360063170,1746533438500,-500.0,0.00019797,2]
[360063172,1746533438509,-500.0,0.00019797,2]
[360063175,1746533438518,-500.0,0.00019797,2]
[360063177,1746533438528,-500.0,0.00019797,2]
[360063179,1746533438538,-500.0,0.00019797,2]